bitfinex/quotes_BTCUSD_20240815
["timestamp","ask_amount","ask_price","bid_price","bid_amount"]
[1723753707767,0.1702,57016.0,57015.0,0.000819]
[1723753707976,0.3813,57016.0,57015.0,0.000819]
[1723753708447,0.3813,57016.0,57015.0,0.141132]
[1723753708652,0.002,57016.0,57015.0,0.421759]
[1723753708878,0.11577727,57017.0,57016.0,0.420933]
[1723753709086,0.08577727,57017.0,57016.0,0.140311]
[1723753709479,0.08577727,57017.0,57016.0,0.420933]
[1723753709730,0.05262381,57028.0,57023.0,0.1969]
[1723753709933,0.2063,57031.0,57023.0,0.1969]
[1723753710139,0.08577727,57028.0,57026.0,0.280571]
[1723753710310,0.08577727,57028.0,57027.0,0.140284]
[1723753710930,0.08577727,57028.0,57027.0,0.420852]
[1723753712297,0.08977727,57028.0,57027.0,0.420852]
[1723753712722,0.09477727,57028.0,57027.0,0.420852]
[1723753712923,0.08977727,57028.0,57027.0,0.420852]
[1723753713142,0.08977727,57028.0,57027.0,0.70142]
[1723753713329,0.09377727,57028.0,57027.0,0.70142]
[1723753713730,0.008,57028.0,57027.0,0.70142]
[1723753714255,0.008,57028.0,57027.0,1.53584254]
[1723753714485,0.008,57028.0,57027.0,1.364288]
[1723753714693,0.008,57028.0,57027.0,1.53584254]
[1723753715506,0.004,57028.0,57027.0,1.53584254]
[1723753715678,0.009009,57034.0,57033.0,0.981886]
[1723753716859,0.010009,57034.0,57033.0,0.990886]
[1723753717495,0.010009,57034.0,57033.0,1.37464054]
[1723753717702,0.010009,57034.0,57033.0,1.53814054]
[1723753717896,0.010009,57034.0,57033.0,1.54798615]
[1723753719333,0.010009,57034.0,57033.0,1.55598615]
[1723753719560,0.010009,57034.0,57033.0,1.00873161]
[1723753723759,0.010009,57034.0,57033.0,1.67412515]
[1723753724010,0.010009,57034.0,57033.0,1.83612515]
[1723753724254,0.010009,57034.0,57033.0,1.83412515]
[1723753724711,0.010009,57034.0,57033.0,1.55358615]
[1723753725120,0.010009,57034.0,57033.0,1.22203161]
[1723753726165,0.010009,57034.0,57033.0,0.44765361]
[1723753726620,0.010009,57034.0,57033.0,0.72819261]
[1723753726842,0.010009,57034.0,57033.0,0.437808]
[1723753727671,0.010009,57034.0,57033.0,0.718347]
[1723753728300,0.010009,57034.0,57033.0,0.998886]
[1723753728506,0.010009,57034.0,57033.0,0.718347]
[1723753728707,0.010009,57034.0,57033.0,0.437808]
[1723753729129,0.010009,57034.0,57033.0,0.718347]
[1723753729842,0.010009,57034.0,57033.0,1.33124054]
[1723753730034,0.010009,57034.0,57033.0,1.17044054]
[1723753730251,0.010009,57034.0,57033.0,0.718347]
[1723753730388,0.227309,57034.0,57033.0,0.437808]
[1723753730815,0.227309,57034.0,57033.0,0.718347]
[1723753731422,0.227309,57034.0,57033.0,0.017]
[1723753731623,0.227309,57034.0,57033.0,0.157269]
[1723753731624,0.391209,57034.0,57033.0,0.157269]
[1723753732249,0.391209,57034.0,57033.0,0.437808]
[1723753732449,0.391209,57034.0,57033.0,0.017]
[1723753735776,0.531476,57034.0,57033.0,0.017]
[1723753736222,1.38192857,57034.0,57033.0,0.017]
[1723753736421,1.38192857,57034.0,57033.0,0.009]
[1723753736652,0.140275,57031.0,57026.0,0.00021109]
[1723753736882,0.08577727,57027.0,57026.0,0.00021109]
[1723753737042,0.25507727,57027.0,57026.0,0.00021109]
[1723753737425,0.46657727,57027.0,57026.0,0.00021109]
[1723753738038,0.46657727,57027.0,57026.0,0.14049709]
[1723753738282,0.46657727,57027.0,57026.0,0.00021109]
[1723753738834,0.46657727,57027.0,57026.0,0.14049709]
[1723753738974,0.46657727,57027.0,57026.0,0.42107009]
[1723753739169,0.46657727,57027.0,57026.0,0.14049709]
[1723753739398,0.3808,57027.0,57026.0,0.42207009]
[1723753739557,0.3808,57032.0,57029.0,0.140277]
[1723753739767,0.1,57031.0,57029.0,0.140277]
[1723753739983,0.1,57031.0,57028.0,0.140281]
[1723753740184,0.1,57031.0,57026.0,0.00021109]
[1723753740185,0.08577727,57029.0,57026.0,0.00021109]
[1723753740414,0.2115,57028.0,57026.0,0.00021109]
[1723753740616,0.2115,57028.0,57026.0,0.14149709]
[1723753741151,0.2115,57028.0,57026.0,0.00121109]
[1723753741349,0.2115,57028.0,57026.0,0.14149709]
[1723753742047,0.2115,57028.0,57026.0,0.00121109]
[1723753742251,0.140284,57027.0,57026.0,0.00121109]
[1723753742457,0.309584,57027.0,57026.0,0.00021109]
[1723753743512,0.309584,57027.0,57026.0,0.00421109]
[1723753743697,0.309584,57027.0,57026.0,0.00121109]
[1723753743698,0.1693,57027.0,57026.0,0.00121109]
[1723753744097,0.1693,57027.0,57026.0,0.00221109]
[1723753744677,0.1693,57027.0,57026.0,0.00121109]
[1723753745569,0.1693,57027.0,57026.0,0.14049709]
[1723753745742,0.2115,57028.0,57027.0,0.140284]
[1723753745881,0.2115,57028.0,57026.0,0.00021109]
[1723753746802,0.001,57027.0,57026.0,0.28078409]
[1723753747007,0.001,57027.0,57026.0,0.42107009]
[1723753747607,0.001,57027.0,57026.0,0.14049709]
[1723753747978,0.001,57027.0,57026.0,0.42107009]
[1723753748134,0.001,57027.0,57026.0,0.14049709]
[1723753748536,0.2115,57028.0,57027.0,0.140284]
[1723753748951,0.2115,57028.0,57026.0,0.00121109]
[1723753748952,0.0009009,57031.0,57030.0,0.140277]
[1723753749151,0.0009009,57031.0,57030.0,0.637331]
[1723753749348,0.0009009,57031.0,57030.0,0.917885]
[1723753749649,0.0009009,57031.0,57030.0,1.198439]
[1723753750037,0.0009009,57031.0,57030.0,0.701385]
[1723753750470,0.0019009,57031.0,57030.0,0.701385]
[1723753750872,0.0019009,57031.0,57030.0,0.704385]
[1723753751631,0.0009009,57031.0,57030.0,0.704385]
[1723753752034,0.0009009,57031.0,57030.0,0.706385]
[1723753753833,0.0009009,57031.0,57030.0,0.425831]
[1723753754647,0.3903009,57031.0,57030.0,0.005]
[1723753754869,0.8111239,57031.0,57030.0,0.005]
[1723753755097,0.5305749,57031.0,57030.0,0.005]
[1723753755562,1.38187086,57031.0,57030.0,0.005]
[1723753755779,1.38187086,57031.0,57030.0,0.003]
[1723753755780,1.50487086,57031.0,57030.0,0.003]
[1723753755997,1.50487086,57031.0,57030.0,0.00219971]
[1723753755998,1.66677644,57031.0,57030.0,0.00219971]
[1723753756263,1.74550982,57031.0,57030.0,0.001]
[1723753756476,1.38622744,57031.0,57030.0,0.003]
[1723753756716,1.43870742,57031.0,57030.0,0.002]
[1723753757346,0.420852,57027.0,57026.0,0.00021109]
[1723753757521,0.80650654,57027.0,57026.0,0.00021109]
[1723753758267,1.08707454,57027.0,57026.0,0.00021109]
[1723753758425,1.25637454,57027.0,57026.0,0.00021109]
[1723753758599,0.97580654,57027.0,57026.0,0.00021109]
[1723753758801,0.69523854,57027.0,57026.0,0.00021109]
[1723753759009,0.97580654,57027.0,57026.0,0.00021109]
[1723753759490,0.97980654,57027.0,57026.0,0.00021109]
[1723753759663,0.98380654,57027.0,57026.0,0.00021109]
[1723753760044,0.70323854,57027.0,57026.0,0.00021109]
[1723753760489,0.81400908,57027.0,57026.0,0.00021109]
[1723753760949,0.70323854,57027.0,57026.0,0.00021109]
[1723753761167,0.98380654,57027.0,57026.0,0.00021109]
[1723753761602,0.70323854,57027.0,57026.0,0.00021109]
[1723753762429,0.008,57027.0,57026.0,0.00021109]
[1723753762948,0.428852,57027.0,57026.0,0.00021109]
[1723753763153,0.627352,57027.0,57026.0,0.00021109]
[1723753763347,0.60972383,57027.0,57026.0,0.00021109]
[1723753763548,0.91329183,57027.0,57026.0,0.00021109]
[1723753763840,1.35945983,57027.0,57026.0,0.00021109]
[1723753764037,1.45645983,57027.0,57026.0,0.00021109]
[1723753764419,1.45945983,57027.0,57026.0,0.00021109]
[1723753764618,1.45645983,57027.0,57026.0,0.00021109]
[1723753765379,1.45245983,57027.0,57026.0,0.00021109]
[1723753765651,1.45545983,57027.0,57026.0,0.00021109]
[1723753766191,1.73702783,57027.0,57026.0,0.00021109]
[1723753766430,1.83675076,57027.0,57026.0,0.00021109]
[1723753768404,1.8891927,57027.0,57026.0,0.00021109]
[1723753768752,1.91541367,57027.0,57026.0,0.00021109]
[1723753768984,1.83675076,57027.0,57026.0,0.00021109]
[1723753769525,1.88918238,57027.0,57026.0,0.00021109]
[1723753770128,1.83675076,57027.0,57026.0,0.00021109]
[1723753770355,1.84697685,57027.0,57026.0,0.00021109]
[1723753770571,1.92563319,57027.0,57026.0,0.00021109]
[1723753770939,1.92563319,57027.0,57026.0,0.00103009]
[1723753771135,1.89735089,57027.0,57026.0,0.00103009]
[1723753771342,2.49789401,57027.0,57026.0,0.00103009]
[1723753771587,2.49789401,57027.0,57016.0,0.000819]
[1723753771588,0.701545,57017.0,57016.0,0.000819]
[1723753771786,2.25389261,57017.0,57016.0,0.000819]
[1723753771992,2.51337602,57017.0,57016.0,0.000819]
[1723753772194,2.52637602,57017.0,57016.0,0.000819]
[1723753772591,2.53637602,57017.0,57016.0,0.000819]
[1723753772798,2.71693056,57017.0,57016.0,0.001819]
[1723753773175,2.70793056,57017.0,57016.0,0.000819]
[1723753773369,2.71893056,57017.0,57016.0,0.001819]
[1723753773567,2.71741845,57017.0,57016.0,0.001819]
[1723753774082,2.70741845,57017.0,57016.0,0.001819]
[1723753774628,2.53232008,57017.0,57016.0,0.001819]
[1723753775104,2.54532008,57017.0,57016.0,0.002819]
[1723753775262,2.68630221,57017.0,57016.0,0.002819]
[1723753775481,2.55532008,57017.0,57016.0,0.002819]
[1723753775679,2.54532008,57017.0,57016.0,0.002819]
[1723753776157,2.67630221,57017.0,57016.0,0.002819]
[1723753776357,2.54532008,57017.0,57016.0,0.002819]
[1723753776646,2.65008276,57017.0,57016.0,0.002819]
[1723753778000,2.65046352,57017.0,57016.0,0.002819]
[1723753778855,2.01869098,57017.0,57016.0,0.002819]
[1723753778993,1.47197844,57017.0,57016.0,0.002819]
[1723753779250,1.46197681,57017.0,57016.0,0.002819]
[1723753779438,1.36197681,57017.0,57016.0,0.002819]
[1723753779643,0.420933,57016.0,57015.0,0.000819]
[1723753779944,1.01332992,57016.0,57015.0,0.000819]
[1723753780310,1.29395192,57016.0,57015.0,0.000819]
[1723753780517,1.31695192,57016.0,57015.0,0.000819]
[1723753780726,1.41695192,57016.0,57015.0,0.000819]
[1723753781484,1.42695192,57016.0,57015.0,0.001819]
[1723753781905,1.44095192,57016.0,57015.0,0.002819]
[1723753783326,0.87979854,57016.0,57015.0,0.002819]
[1723753783529,1.12845203,57016.0,57015.0,0.002819]
[1723753783728,1.40907403,57016.0,57015.0,0.002819]
[1723753785772,2.06799603,57016.0,57015.0,0.002819]
[1723753786173,2.25289603,57016.0,57015.0,0.002819]
[1723753786626,2.25289603,57016.0,57010.0,0.000818]
[1723753786627,1.447811,57011.0,57010.0,0.000818]
[1723753786833,2.27284281,57011.0,57010.0,0.000818]
[1723753787053,2.37263177,57011.0,57010.0,0.000818]
[1723753787270,2.39563177,57011.0,57010.0,0.000818]
[1723753787888,2.41563177,57011.0,57010.0,0.001818]
[1723753788086,2.49701706,57011.0,57010.0,0.001818]
[1723753788316,2.48701706,57011.0,57010.0,0.000818]
[1723753788717,2.51101706,57011.0,57010.0,0.001818]
[1723753788907,2.49701706,57011.0,57010.0,0.001818]
[1723753789112,2.48701706,57011.0,57010.0,0.000818]
[1723753789227,2.50101706,57011.0,57010.0,0.000818]
[1723753789432,2.23473177,57011.0,57010.0,0.001818]
[1723753789629,1.95408477,57011.0,57010.0,0.001818]
[1723753789835,1.94008477,57011.0,57010.0,0.001818]
[1723753790082,1.95408477,57011.0,57010.0,0.001818]
[1723753790637,2.13898477,57011.0,57010.0,0.001818]
[1723753790854,2.13898477,57011.0,57010.0,0.000818]
[1723753790855,2.30053931,57011.0,57010.0,0.000818]
[1723753790980,2.60534537,57011.0,57010.0,0.000818]
[1723753791409,2.61534537,57011.0,57010.0,0.000818]
[1723753791612,2.58734537,57011.0,57010.0,0.000818]
[1723753791809,2.60134537,57011.0,57010.0,0.000818]
[1723753792011,2.61534537,57011.0,57010.0,0.000818]
[1723753792213,0.70184,56993.0,56992.0,0.000818]
[1723753792418,1.13877181,56993.0,56992.0,0.000818]
[1723753792592,1.26177181,56993.0,56992.0,0.000818]
[1723753793013,0.52069981,56993.0,56992.0,0.000818]
[1723753793210,0.80143581,56993.0,56992.0,0.000818]
[1723753793720,0.52969981,56993.0,56992.0,0.000818]
[1723753794361,1.09117181,56993.0,56992.0,0.000818]
[1723753794768,1.08217181,56993.0,56992.0,0.000818]
[1723753794964,0.80943581,56993.0,56992.0,0.000818]
[1723753795200,0.81843581,56993.0,56992.0,0.000818]
[1723753795532,0.80143581,56993.0,56992.0,0.000818]
[1723753795724,0.80943581,56993.0,56992.0,0.000818]
[1723753795977,0.81843581,56993.0,56992.0,0.000818]
[1723753796325,1.09917181,56993.0,56992.0,0.000818]
[1723753796785,0.81843581,56993.0,56992.0,0.000818]
[1723753796983,1.09917181,56993.0,56992.0,0.000818]
[1723753797183,1.09017181,56993.0,56992.0,0.000818]
[1723753797584,1.09817181,56993.0,56992.0,0.000818]
[1723753798058,1.08217181,56993.0,56992.0,0.000818]
[1723753798280,1.10123531,56993.0,56992.0,0.000818]
[1723753798895,1.11023531,56993.0,56992.0,0.000818]
[1723753799489,2.08736704,56993.0,56992.0,0.000818]
[1723753800252,2.22900731,56993.0,56992.0,0.000818]
[1723753801033,2.22000731,56993.0,56992.0,0.000818]
[1723753801243,2.21100731,56993.0,56992.0,0.000818]
[1723753801458,2.22200731,56993.0,56992.0,0.000818]
[1723753801626,2.23300731,56993.0,56992.0,0.000818]
[1723753801847,2.38256185,56993.0,56992.0,0.000818]
[1723753802045,2.21100731,56993.0,56992.0,0.000818]
[1723753802248,1.58057131,56993.0,56992.0,0.000818]
[1723753802502,1.12023531,56993.0,56992.0,0.000818]
[1723753802874,1.40097131,56993.0,56992.0,0.000818]
[1723753804264,1.12023531,56993.0,56992.0,0.000818]
[1723753805130,0.82943581,56993.0,56992.0,0.000818]
[1723753805327,0.30833181,56993.0,56992.0,0.000818]
[1723753805527,0.11377727,56993.0,56992.0,0.786429]
[1723753806283,0.11377727,56993.0,56992.0,1.06717]
[1723753806692,0.09977727,56993.0,56992.0,1.06717]
[1723753807243,0.11177727,56993.0,56992.0,0.786429]
[1723753807633,0.09777727,56993.0,56992.0,1.06717]
[1723753808512,0.08577727,56993.0,56992.0,1.06717]
[1723753809457,0.08577727,56993.0,56992.0,0.786429]
[1723753809615,0.08577727,56993.0,56992.0,0.367318]
[1723753809818,0.08677727,56993.0,56992.0,0.208518]
[1723753810030,0.08677727,56993.0,56992.0,0.002818]
[1723753810233,0.08677727,56993.0,56992.0,0.517288]
[1723753810477,0.08577727,56993.0,56992.0,0.798029]
[1723753810748,0.08577727,56993.0,56992.0,0.213618]
[1723753810940,0.08577727,56993.0,56992.0,0.002818]
[1723753810941,0.08677727,56993.0,56992.0,0.002818]
[1723753811568,0.783611,56992.0,56989.0,0.3741]
[1723753811772,0.783611,56992.0,56990.0,0.140374]
[1723753812109,0.783611,56992.0,56990.0,0.140375]
[1723753812314,0.783611,56992.0,56991.0,0.912665]
[1723753812746,0.785611,56992.0,56991.0,0.912665]
[1723753812949,0.783611,56992.0,56991.0,0.912665]
[1723753813151,0.783611,56992.0,56991.0,0.2108]
[1723753813369,0.783611,56992.0,56991.0,0.351173]
[1723753813370,0.785611,56992.0,56991.0,0.351173]
[1723753813978,0.785611,56992.0,56991.0,0.2108]
[1723753814248,0.785611,56992.0,56991.0,0.2128]
[1723753814249,0.786611,56992.0,56991.0,0.2128]
[1723753814473,0.786611,56992.0,56991.0,0.002]
[1723753814474,2.06464185,56992.0,56991.0,0.002]
[1723753814683,0.140389,56985.0,56983.0,0.2088]
[1723753814902,0.08577727,56984.0,56981.0,0.1639]
[1723753815094,0.22616827,56984.0,56981.0,0.1639]
[1723753815280,0.22616827,56984.0,56970.0,0.280849]
[1723753815281,0.17155454,56983.0,56977.0,0.2088]
[1723753815488,0.140411,56976.0,56973.0,0.2088]
[1723753815818,0.08577727,56977.0,56973.0,0.349217]
[1723753816015,0.08577727,56977.0,56973.0,0.2088]
[1723753816263,0.14041,56976.0,56973.0,0.2088]
[1723753816479,0.08577727,56977.0,56975.0,0.14041]
[1723753816852,0.08577727,56977.0,56973.0,0.2088]
[1723753816853,0.140411,56976.0,56973.0,0.2088]
[1723753817087,0.08577727,56977.0,56973.0,0.2088]
[1723753817452,0.140414,56975.0,56973.0,0.2088]
[1723753818238,0.140414,56975.0,56973.0,0.2098]
[1723753818438,0.140411,56976.0,56973.0,0.2098]
[1723753818672,0.140413,56975.0,56973.0,0.001]
[1723753818878,0.140414,56974.0,56973.0,0.001]
[1723753819263,0.140411,56976.0,56973.0,0.001]
[1723753819489,0.140417,56973.0,56972.0,0.4787]
[1723753820377,0.140417,56973.0,56970.0,0.2164]
[1723753820630,0.08577727,56971.0,56970.0,0.2164]
[1723753822079,0.08577727,56971.0,56968.0,0.0082]
[1723753822280,0.421281,56969.0,56968.0,0.0082]
[1723753822713,1.15454354,56969.0,56968.0,0.0082]
[1723753822886,1.21658954,56969.0,56968.0,0.0082]
[1723753823086,1.62778022,56969.0,56968.0,0.0082]
[1723753823310,1.81731725,56969.0,56968.0,0.0082]
[1723753824037,1.39578954,56969.0,56968.0,0.0092]
[1723753824552,1.39578954,56969.0,56968.0,0.0082]
[1723753824729,1.39678954,56969.0,56968.0,0.0082]
[1723753825316,1.40978954,56969.0,56968.0,0.0082]
[1723753825739,1.42378954,56969.0,56968.0,0.0082]
[1723753826705,1.39578954,56969.0,56968.0,0.0082]
[1723753826914,1.69064354,56969.0,56968.0,0.0082]
[1723753827443,1.67664354,56969.0,56968.0,0.0082]
[1723753827849,1.70464354,56969.0,56968.0,0.0082]
[1723753828423,1.69064354,56969.0,56968.0,0.0082]
[1723753828899,1.70464354,56969.0,56968.0,0.0082]
[1723753829241,1.87619808,56969.0,56968.0,0.0082]
[1723753829465,2.15705208,56969.0,56968.0,0.0082]
[1723753829726,2.14305208,56969.0,56968.0,0.0082]
[1723753830142,2.14305208,56969.0,56958.0,0.000818]
[1723753830143,0.325351,56959.0,56958.0,0.000818]
[1723753830344,0.325351,56959.0,56958.0,0.00028922]
[1723753830345,1.59582391,56959.0,56958.0,0.00028922]
[1723753830546,1.585878,56958.0,56957.0,0.00097028]
[1723753830675,2.54296477,56958.0,56957.0,0.00097028]
[1723753830877,2.61380308,56958.0,56957.0,0.00097028]
[1723753831286,2.41224854,56958.0,56957.0,0.00097028]
[1723753831492,2.13134054,56958.0,56957.0,0.00097028]
[1723753832309,2.14534054,56958.0,56957.0,0.00097028]
[1723753832704,2.13134054,56958.0,56957.0,0.00097028]
[1723753833046,0.421377,56956.0,56955.0,0.00611028]
[1723753833249,1.91039073,56956.0,56955.0,0.00611028]
[1723753833402,1.62947273,56956.0,56955.0,0.00611028]
[1723753833611,1.91039073,56956.0,56955.0,0.00611028]
[1723753834039,2.12159073,56956.0,56955.0,0.00611028]
[1723753834262,2.13559073,56956.0,56955.0,0.00611028]
[1723753834635,1.96469073,56956.0,56955.0,0.00611028]
[1723753837198,2.14109073,56956.0,56955.0,0.00611028]
[1723753838091,2.12709073,56956.0,56955.0,0.00611028]
[1723753838348,2.14109073,56956.0,56955.0,0.00611028]
[1723753838556,2.12309073,56956.0,56955.0,0.00611028]
[1723753838784,2.11309073,56956.0,56955.0,0.00611028]
[1723753839007,2.12709073,56956.0,56955.0,0.00611028]
[1723753839263,2.12309073,56956.0,56955.0,0.00611028]
[1723753839754,2.14109073,56956.0,56955.0,0.00611028]
[1723753840215,2.12709073,56956.0,56955.0,0.00611028]
[1723753840444,1.264198,56953.0,56952.0,0.0082]
[1723753840677,2.07211083,56953.0,56952.0,0.0082]
[1723753841419,2.52974383,56953.0,56952.0,0.0082]
[1723753841623,2.54974383,56953.0,56952.0,0.0082]
[1723753842261,2.26881083,56953.0,56952.0,0.0082]
[1723753842466,2.26281083,56953.0,56952.0,0.0082]
[1723753842669,2.24881083,56953.0,56952.0,0.0082]
[1723753843659,2.26281083,56953.0,56952.0,0.0082]
[1723753843804,2.29081083,56953.0,56952.0,0.0082]
[1723753844002,2.31081083,56953.0,56952.0,0.0082]
[1723753844204,2.26881083,56953.0,56952.0,0.0082]
[1723753844606,2.29681083,56953.0,56952.0,0.0082]
[1723753844811,2.28281083,56953.0,56952.0,0.0082]
[1723753845232,2.29681083,56953.0,56952.0,0.0082]
[1723753845436,2.28281083,56953.0,56952.0,5.7e-07]
[1723753846039,2.6635211,56953.0,56952.0,5.7e-07]
[1723753846806,2.6495211,56953.0,56952.0,5.7e-07]
[1723753846938,2.6635211,56953.0,56952.0,5.7e-07]
[1723753847317,2.6635211,56953.0,56936.0,0.000819]
[1723753847318,0.983542,56937.0,56936.0,0.000819]
[1723753847536,1.44347381,56937.0,56936.0,0.000819]
[1723753847743,1.54347381,56937.0,56936.0,0.000819]
[1723753848699,1.55347381,56937.0,56936.0,0.000819]
[1723753848907,2.05308581,56937.0,56936.0,0.000819]
[1723753849066,2.08662091,56937.0,56936.0,0.000819]
[1723753849942,2.09662091,56937.0,56936.0,0.000819]
[1723753850689,1.81560891,56937.0,56936.0,0.000819]
[1723753851320,2.09662091,56937.0,56936.0,0.000819]
[1723753851535,1.81560891,56937.0,56936.0,0.000819]
[1723753851742,2.09662091,56937.0,56936.0,0.000819]
[1723753851941,1.81560891,56937.0,56936.0,0.000819]
[1723753853258,2.09662091,56937.0,56936.0,0.000819]
[1723753853457,2.09662091,56937.0,56935.0,0.00818]
[1723753853458,0.983559,56936.0,56935.0,0.00818]
[1723753853826,2.00695273,56936.0,56935.0,0.00818]
[1723753853995,2.18675273,56936.0,56935.0,0.00818]
[1723753854198,2.19675273,56936.0,56935.0,0.00818]
[1723753854605,1.555648,56934.0,56933.0,0.00819]
[1723753854852,2.47584765,56934.0,56933.0,0.00819]
[1723753855030,2.18482065,56934.0,56933.0,0.00819]
[1723753856114,2.20882065,56934.0,56933.0,0.00819]
[1723753856319,2.37972065,56934.0,56933.0,0.00766203]
[1723753856549,2.39372065,56934.0,56933.0,0.00766203]
[1723753856767,2.67474765,56934.0,56933.0,0.00766203]
[1723753857017,3.54574765,56934.0,56933.0,0.00766203]
[1723753857227,3.55974765,56934.0,56933.0,0.00766203]
[1723753857434,3.54574765,56934.0,56933.0,0.00766203]
[1723753857879,3.55974765,56934.0,56933.0,0.00766203]
[1723753858085,2.53326236,56934.0,56933.0,0.00766203]
[1723753858301,2.13414854,56934.0,56933.0,0.00766203]
[1723753858534,1.18314854,56934.0,56933.0,0.40056203]
[1723753858959,1.15514854,56934.0,56933.0,0.40056203]
[1723753859132,1.16914854,56934.0,56933.0,0.40056203]
[1723753859334,1.32660112,56934.0,56933.0,0.40056203]
[1723753859663,1.41260112,56934.0,56933.0,0.00766203]
[1723753859840,1.89842812,56934.0,56933.0,0.00766203]
[1723753859992,1.91242812,56934.0,56933.0,0.00766203]
[1723753860411,1.91242812,56934.0,56933.0,5.3e-07]
[1723753860604,2.08662812,56934.0,56933.0,5.3e-07]
[1723753861159,2.69381531,56934.0,56933.0,5.3e-07]
[1723753861406,2.67981531,56934.0,56933.0,5.3e-07]
[1723753861606,2.69381531,56934.0,56933.0,5.3e-07]
[1723753861819,2.67981531,56934.0,56933.0,5.3e-07]
[1723753862046,2.38478831,56934.0,56933.0,5.3e-07]
[1723753862253,2.38478831,56934.0,56920.0,0.000819]
[1723753862254,0.983818,56921.0,56920.0,0.000819]
[1723753862462,1.44374981,56921.0,56920.0,0.000819]
[1723753862668,1.54374981,56921.0,56920.0,0.000819]
[1723753863847,1.09405881,56921.0,56920.0,0.000819]
[1723753864050,1.37514981,56921.0,56920.0,0.225419]
[1723753864252,1.37514981,56921.0,56920.0,0.000819]
[1723753864253,1.67445662,56921.0,56920.0,0.000819]
[1723753864455,2.04987062,56921.0,56920.0,0.000819]
[1723753864989,1.77977962,56921.0,56920.0,0.000819]
[1723753865112,1.65937374,56921.0,56920.0,0.000819]
[1723753865314,1.57805074,56921.0,56920.0,0.000819]
[1723753865616,1.67241732,56921.0,56920.0,0.000819]
[1723753865843,1.65941732,56921.0,56920.0,0.000819]
[1723753866059,1.83097186,56921.0,56920.0,0.000819]
[1723753866264,1.84197186,56921.0,56920.0,0.000819]
[1723753866473,1.74760528,56921.0,56920.0,0.000819]
[1723753866678,1.74760528,56921.0,56920.0,0.219319]
[1723753866679,1.73660528,56921.0,56920.0,0.219319]
[1723753866876,1.74960528,56921.0,56920.0,0.219319]
[1723753867049,1.56705074,56921.0,56920.0,0.219319]
[1723753867471,1.58105074,56921.0,56920.0,0.219319]
[1723753867752,1.56705074,56921.0,56920.0,0.000819]
[1723753868162,1.58105074,56921.0,56920.0,0.167919]
[1723753868370,1.26406481,56921.0,56920.0,0.167919]
[1723753868597,1.27806481,56921.0,56920.0,0.167919]
[1723753868947,1.25006481,56921.0,56920.0,0.167919]
[1723753869149,1.53115581,56921.0,56920.0,0.167919]
[1723753869315,1.54415581,56921.0,56920.0,0.167919]
[1723753869731,1.53115581,56921.0,56920.0,0.167919]
[1723753869939,1.71075581,56921.0,56920.0,0.167919]
[1723753870137,1.72175581,56921.0,56920.0,0.167919]
[1723753870352,1.73575581,56921.0,56920.0,0.167919]
[1723753870577,1.72175581,56921.0,56920.0,0.167919]
[1723753870980,1.73275581,56921.0,56920.0,0.167919]
[1723753872488,1.10505881,56921.0,56920.0,0.167919]
[1723753872687,0.011,56921.0,56920.0,0.804763]
[1723753872897,0.011,56921.0,56920.0,1.085859]
[1723753873289,0.024,56921.0,56920.0,1.085859]
[1723753873742,0.013,56921.0,56920.0,1.085859]
[1723753874087,0.014,56921.0,56920.0,1.085859]
[1723753874284,0.013,56921.0,56920.0,1.085859]
[1723753874712,0.014,56921.0,56920.0,1.085859]
[1723753874870,0.140527,56929.0,56924.0,0.140536]
[1723753875074,0.140527,56929.0,56926.0,0.3867]
[1723753875280,0.08577727,56930.0,56928.0,0.1793]
[1723753875481,0.08577727,56930.0,56929.0,0.527225]
[1723753875912,0.08577727,56930.0,56929.0,0.808276]
[1723753876309,0.000902,56934.0,56933.0,0.421548]
[1723753876513,0.000902,56934.0,56933.0,0.808248]
[1723753876972,0.000902,56934.0,56933.0,0.808248]
[1723753877611,0.009902,56934.0,56933.0,0.808248]
[1723753879147,0.018902,56934.0,56933.0,0.808248]
[1723753879345,0.018902,56934.0,56933.0,0.3867]
[1723753879550,0.009902,56934.0,56933.0,0.3867]
[1723753879747,0.000902,56934.0,56933.0,0.527216]
[1723753879971,0.007902,56934.0,56933.0,0.808248]
[1723753880174,0.015902,56934.0,56933.0,0.808248]
[1723753880417,0.015902,56934.0,56933.0,1.08928]
[1723753880900,0.015902,56934.0,56933.0,1.370312]
[1723753881117,0.015902,56934.0,56933.0,1.08928]
[1723753881771,0.015902,56934.0,56933.0,1.82289854]
[1723753882127,0.015902,56934.0,56933.0,1.82489854]
[1723753882343,0.51466362,56955.0,56952.0,1.081045]
[1723753882854,0.0009009,56958.0,56952.0,1.081045]
[1723753883349,0.140457,56957.0,56952.0,0.519169]
[1723753883551,0.0009009,56958.0,56952.0,0.519169]
[1723753883761,0.0009009,56958.0,56952.0,0.800107]
[1723753883960,0.0009009,56958.0,56952.0,1.364983]
[1723753884574,0.09067927,56953.0,56952.0,1.364983]
[1723753884771,0.09067927,56953.0,56952.0,1.361983]
[1723753885574,0.08667927,56953.0,56952.0,1.199483]
[1723753885873,0.08667927,56953.0,56952.0,0.985283]
[1723753886250,0.08667927,56953.0,56952.0,1.0838113]
[1723753886412,0.000902,56953.0,56952.0,1.25536584]
[1723753886672,0.000902,56953.0,56952.0,1.53530384]
[1723753887086,0.0009009,56958.0,56957.0,1.264108]
[1723753887227,0.0009009,56958.0,56957.0,1.89817554]
[1723753887434,0.0009009,56958.0,56957.0,2.22422854]
[1723753887633,0.0009009,56958.0,56957.0,2.38810826]
[1723753887833,0.51466362,56989.0,56983.0,0.701962]
[1723753888034,0.51466362,56989.0,56987.0,0.140381]
[1723753888266,0.51466362,56989.0,56961.0,0.282892]
[1723753888267,0.68621816,56989.0,56961.0,0.282892]
[1723753888591,0.08577727,56979.0,56978.0,0.702025]
[1723753888961,0.08577727,56979.0,56978.0,0.421215]
[1723753890104,0.08577727,56979.0,56978.0,0.702025]
[1723753890664,0.08677727,56979.0,56978.0,0.709025]
[1723753890986,0.001,56979.0,56978.0,1.52291384]
[1723753891184,0.2238,57009.0,56978.0,1.52291384]
[1723753891185,0.2238,57009.0,56990.0,0.421126]
[1723753891400,0.140346,57002.0,56990.0,0.421126]
[1723753891605,0.88111889,57005.0,56990.0,0.421126]